[Event "Late-Titled-Tuesday-Blitz-March-12-2024"]
[Site "Chess.com"]
[Date "2024.03.12"]
[Round "9"]
[White "amiralfio"]
[Black "N4700000"]
[Result "1-0"]
[WhiteElo "2669"]
[BlackElo "2492"]
[TimeControl "180+1"]
[EndTime "15:44:21 PDT"]
[Termination "amiralfio won on time"]

1. d4 {[%clk 0:03:00.3]} 1... Nf6 {[%clk 0:02:59]} 2. Bf4 {[%clk 0:03:01]} 2...
e6 {[%clk 0:02:55.3]} 3. Nc3 {[%clk 0:03:01.4]} 3... d5 {[%clk 0:02:44.1]} 4. e3
{[%clk 0:03:01.1]} 4... a6 {[%clk 0:02:42.8]} 5. Bd3 {[%clk 0:03:00.7]} 5... b5
{[%clk 0:02:37.8]} 6. a3 {[%clk 0:03:00.5]} 6... Bb7 {[%clk 0:02:36.3]} 7. Nge2
{[%clk 0:03:01]} 7... c5 {[%clk 0:02:33.5]} 8. dxc5 {[%clk 0:03:00.9]} 8... Bxc5
{[%clk 0:02:34.4]} 9. O-O {[%clk 0:02:55.6]} 9... O-O {[%clk 0:02:30.7]} 10. Bg5
{[%clk 0:02:53.6]} 10... Be7 {[%clk 0:02:24]} 11. Ng3 {[%clk 0:02:52.5]} 11...
Nc6 {[%clk 0:02:21.1]} 12. Qe2 {[%clk 0:02:43]} 12... Ne5 {[%clk 0:02:14.9]} 13.
Rad1 {[%clk 0:02:42.5]} 13... Nxd3 {[%clk 0:02:07.1]} 14. Rxd3 {[%clk
0:02:40.2]} 14... Qc7 {[%clk 0:02:04.5]} 15. Rfd1 {[%clk 0:02:31.8]} 15... Rac8
{[%clk 0:02:03.2]} 16. h4 {[%clk 0:02:30.7]} 16... h6 {[%clk 0:01:53.3]} 17.
Bxf6 {[%clk 0:02:13.3]} 17... Bxf6 {[%clk 0:01:54.2]} 18. Nh5 {[%clk 0:02:13.6]}
18... Be5 {[%clk 0:01:46.8]} 19. f4 {[%clk 0:02:11.8]} 19... Bd6 {[%clk
0:01:43.5]} 20. Qg4 {[%clk 0:02:07.9]} 20... f5 {[%clk 0:01:41.7]} 21. Qg6
{[%clk 0:01:56.6]} 21... Qf7 {[%clk 0:01:39.2]} 22. Qxf7+ {[%clk 0:01:56.5]}
22... Kxf7 {[%clk 0:01:40.1]} 23. Ng3 {[%clk 0:01:55.7]} 23... Rc7 {[%clk
0:01:31.6]} 24. Nge2 {[%clk 0:01:55.7]} 24... Rfc8 {[%clk 0:01:29.8]} 25. Nd4
{[%clk 0:01:56]} 25... Be7 {[%clk 0:01:12.8]} 26. Nf3 {[%clk 0:01:54.7]} 26...
Bf6 {[%clk 0:01:08.4]} 27. Nd4 {[%clk 0:01:37.9]} 27... Bxh4 {[%clk 0:01:04.6]}
28. Nce2 {[%clk 0:01:29]} 28... Bf6 {[%clk 0:01:04.1]} 29. c3 {[%clk 0:01:29.3]}
29... g5 {[%clk 0:01:02.9]} 30. Kf2 {[%clk 0:01:28.4]} 30... Rh8 {[%clk
0:00:56.3]} 31. Rh1 {[%clk 0:01:28.4]} 31... g4 {[%clk 0:00:55.7]} 32. Ng3
{[%clk 0:01:26.1]} 32... Bc6 {[%clk 0:00:48]} 33. Rdd1 {[%clk 0:01:25.4]} 33...
Be8 {[%clk 0:00:45.5]} 34. Nh5 {[%clk 0:01:13.6]} 34... Bxd4 {[%clk 0:00:34.4]}
35. exd4 {[%clk 0:01:13.3]} 35... Ke7 {[%clk 0:00:33.5]} 36. Rde1 {[%clk
0:01:12.2]} 36... Bxh5 {[%clk 0:00:30.6]} 37. Rxh5 {[%clk 0:01:12.3]} 37... Kf6
{[%clk 0:00:30.8]} 38. Rhh1 {[%clk 0:00:58.7]} 38... Rc6 {[%clk 0:00:29.5]} 39.
Re3 {[%clk 0:00:55.4]} 39... h5 {[%clk 0:00:28.6]} 40. Kg3 {[%clk 0:00:53.8]}
40... a5 {[%clk 0:00:20.2]} 41. Kh4 {[%clk 0:00:51.3]} 41... Kg6 {[%clk
0:00:20.4]} 42. Rhe1 {[%clk 0:00:51]} 42... Re8 {[%clk 0:00:20.6]} 43. Re5
{[%clk 0:00:51.3]} 43... Rd6 {[%clk 0:00:21.1]} 44. a4 {[%clk 0:00:43.8]} 44...
bxa4 {[%clk 0:00:20.1]} 45. Ra1 {[%clk 0:00:44.1]} 45... Rb8 {[%clk 0:00:18.4]}
46. Re2 {[%clk 0:00:25.5]} 46... Kf6 {[%clk 0:00:17.3]} 47. Rxa4 {[%clk
0:00:25.4]} 47... Rb5 {[%clk 0:00:17.2]} 48. Kxh5 {[%clk 0:00:21.1]} 48... Rd8
{[%clk 0:00:15.8]} 49. Kh4 {[%clk 0:00:21.6]} 49... Rh8+ {[%clk 0:00:15.4]} 50.
Kg3 {[%clk 0:00:22.2]} 50... Rh1 {[%clk 0:00:16]} 51. b4 {[%clk 0:00:20.9]}
51... axb4 {[%clk 0:00:15.4]} 52. cxb4 {[%clk 0:00:20.8]} 52... Rb1 {[%clk
0:00:14.3]} 53. Ra6 {[%clk 0:00:20.9]} 53... Rb3+ {[%clk 0:00:13.4]} 54. Kh4
{[%clk 0:00:21]} 54... R5xb4 {[%clk 0:00:12.2]} 55. Raxe6+ {[%clk 0:00:16.5]}
55... Kf7 {[%clk 0:00:12.1]} 56. Re7+ {[%clk 0:00:17]} 56... Kf8 {[%clk
0:00:11.3]} 57. Re8+ {[%clk 0:00:17.3]} 57... Kf7 {[%clk 0:00:11.4]} 58. R2e7+
{[%clk 0:00:18]} 58... Kf6 {[%clk 0:00:11.4]} 59. Re6+ {[%clk 0:00:18.6]} 59...
Kf7 {[%clk 0:00:11.6]} 60. R8e7+ {[%clk 0:00:19.2]} 60... Kf8 {[%clk 0:00:11.7]}
61. Ra7 {[%clk 0:00:19.6]} 61... Rb7 {[%clk 0:00:10.8]} 62. Ra8+ {[%clk
0:00:18.7]} 62... Kf7 {[%clk 0:00:10.6]} 63. Rh6 {[%clk 0:00:17.4]} 63... R3b6
{[%clk 0:00:10]} 64. Rh5 {[%clk 0:00:14.7]} 64... Rg6 {[%clk 0:00:08.4]} 65.
Rxf5+ {[%clk 0:00:14.5]} 65... Ke6 {[%clk 0:00:08.8]} 66. Re5+ {[%clk
0:00:13.2]} 66... Kd6 {[%clk 0:00:07.8]} 67. Rd8+ {[%clk 0:00:13.4]} 67... Kc6
{[%clk 0:00:06.7]} 68. Rdxd5 {[%clk 0:00:13.8]} 68... g3 {[%clk 0:00:05.5]} 69.
Rg5 {[%clk 0:00:11.8]} 69... Rh7+ {[%clk 0:00:04]} 70. Kg4 {[%clk 0:00:12.4]}
70... Rf6 {[%clk 0:00:03.9]} 71. Kxg3 {[%clk 0:00:12.5]} 71... Rhf7 {[%clk
0:00:04.2]} 72. Rc5+ {[%clk 0:00:11.2]} 72... Kd6 {[%clk 0:00:03.7]} 73. f5
{[%clk 0:00:11.9]} 73... Rf8 {[%clk 0:00:02.1]} 74. Rg6 {[%clk 0:00:11.3]} 74...
Rxg6+ {[%clk 0:00:01.3]} 75. fxg6 {[%clk 0:00:12.2]} 75... Rg8 {[%clk
0:00:01.1]} 76. Rg5 {[%clk 0:00:12.7]} 1-0

[Event "Late-Titled-Tuesday-Blitz-March-12-2024"]
[Site "Chess.com"]
[Date "2024.03.12"]
[Round "9"]
[White "Machidon"]
[Black "Danito1954"]
[Result "1/2-1/2"]
[WhiteElo "2514"]
[BlackElo "2347"]
[TimeControl "180+1"]
[EndTime "15:44:22 PDT"]
[Termination "Game drawn by repetition"]

1. d4 {[%clk 0:02:16.4]} 1... d5 {[%clk 0:02:57.9]} 2. c4 {[%clk 0:02:15.1]}
2... Nc6 {[%clk 0:02:56.9]} 3. Nc3 {[%clk 0:02:14.8]} 3... Nf6 {[%clk 0:02:55]}
4. Nf3 {[%clk 0:02:11.5]} 4... e6 {[%clk 0:02:55.1]} 5. Bg5 {[%clk 0:02:03.5]}
5... Be7 {[%clk 0:02:54.8]} 6. e3 {[%clk 0:02:02.9]} 6... O-O {[%clk 0:02:54.1]}
7. Rc1 {[%clk 0:02:02.6]} 7... h6 {[%clk 0:02:50.5]} 8. Bh4 {[%clk 0:01:55]}
8... a6 {[%clk 0:02:50.9]} 9. cxd5 {[%clk 0:01:51.1]} 9... Nxd5 {[%clk
0:02:48.2]} 10. Bg3 {[%clk 0:01:45.3]} 10... Nxc3 {[%clk 0:02:45.3]} 11. bxc3
{[%clk 0:01:44.9]} 11... Bd6 {[%clk 0:02:45.6]} 12. e4 {[%clk 0:01:41.2]} 12...
e5 {[%clk 0:02:42.3]} 13. dxe5 {[%clk 0:01:10]} 13... Ba3 {[%clk 0:02:24.3]} 14.
Rc2 {[%clk 0:01:07.4]} 14... Qxd1+ {[%clk 0:02:16.9]} 15. Kxd1 {[%clk
0:01:08.3]} 15... Be6 {[%clk 0:02:13.8]} 16. Nd4 {[%clk 0:01:07.7]} 16... Rfd8
{[%clk 0:02:11.8]} 17. Rd2 {[%clk 0:01:07.9]} 17... Nxd4 {[%clk 0:02:07.8]} 18.
cxd4 {[%clk 0:01:03.4]} 18... Bb4 {[%clk 0:02:07.3]} 19. d5 {[%clk 0:00:58.2]}
19... Bxd2 {[%clk 0:02:06.7]} 20. Kxd2 {[%clk 0:00:59.1]} 20... c6 {[%clk
0:02:06.4]} 21. d6 {[%clk 0:00:53.2]} 21... Bxa2 {[%clk 0:02:07.3]} 22. Bd3
{[%clk 0:00:49.4]} 22... Be6 {[%clk 0:02:03.4]} 23. f4 {[%clk 0:00:49.3]} 23...
b5 {[%clk 0:01:59.2]} 24. Rc1 {[%clk 0:00:37.4]} 24... Rac8 {[%clk 0:01:57.4]}
25. Bf2 {[%clk 0:00:28.4]} 25... b4 {[%clk 0:01:51.4]} 26. f5 {[%clk 0:00:26.7]}
26... Ba2 {[%clk 0:01:50.6]} 27. Bb6 {[%clk 0:00:24.3]} 27... Rd7 {[%clk
0:01:46.7]} 28. Bc5 {[%clk 0:00:18.4]} 28... b3 {[%clk 0:01:46.1]} 29. Kc3
{[%clk 0:00:19]} 29... Re8 {[%clk 0:01:43.5]} 30. e6 {[%clk 0:00:13.9]} 30...
fxe6 {[%clk 0:01:41.1]} 31. fxe6 {[%clk 0:00:13.9]} 31... Rxe6 {[%clk 0:01:41]}
32. Bc4 {[%clk 0:00:14.5]} 32... b2 {[%clk 0:01:41.5]} 33. Bxe6+ {[%clk
0:00:09.5]} 33... Bxe6 {[%clk 0:01:41.2]} 34. Kxb2 {[%clk 0:00:10.4]} 34... Rb7+
{[%clk 0:01:40.5]} 35. Kc3 {[%clk 0:00:10.4]} 35... a5 {[%clk 0:01:38.4]} 36.
Kd4 {[%clk 0:00:09.8]} 36... a4 {[%clk 0:01:34.1]} 37. Ke5 {[%clk 0:00:09.9]}
37... Bb3 {[%clk 0:01:34.4]} 38. Rc3 {[%clk 0:00:08.9]} 38... Kf7 {[%clk
0:01:22.6]} 39. Rf3+ {[%clk 0:00:08]} 39... Ke8 {[%clk 0:01:23.2]} 40. h4 {[%clk
0:00:07.9]} 40... Rb5 {[%clk 0:01:18.8]} 41. Kd4 {[%clk 0:00:07.5]} 41... Be6
{[%clk 0:01:17.3]} 42. e5 {[%clk 0:00:06.2]} 42... Kd7 {[%clk 0:01:17.2]} 43.
Rg3 {[%clk 0:00:04.8]} 43... g5 {[%clk 0:01:13.8]} 44. hxg5 {[%clk 0:00:05.7]}
44... hxg5 {[%clk 0:01:14.7]} 45. Rxg5 {[%clk 0:00:06]} 45... Bf7 {[%clk
0:01:14.4]} 46. Rf5 {[%clk 0:00:05.7]} 46... Be6 {[%clk 0:01:13.4]} 47. Rh5
{[%clk 0:00:06]} 47... Rb1 {[%clk 0:01:08.2]} 48. Rh7+ {[%clk 0:00:06.1]} 48...
Kd8 {[%clk 0:01:08.8]} 49. Re7 {[%clk 0:00:05.3]} 49... Rd1+ {[%clk 0:01:08.6]}
50. Ke3 {[%clk 0:00:05.5]} 50... Bd7 {[%clk 0:00:55.5]} 51. Ke2 {[%clk
0:00:05.8]} 51... Rd5 {[%clk 0:00:53.5]} 52. Bb6+ {[%clk 0:00:06.1]} 52... Kc8
{[%clk 0:00:54.1]} 53. Ke3 {[%clk 0:00:05.9]} 53... a3 {[%clk 0:00:54]} 54. e6
{[%clk 0:00:05.9]} 54... Re5+ {[%clk 0:00:53.9]} 55. Kd4 {[%clk 0:00:05.5]}
55... Rxe6 {[%clk 0:00:52.3]} 56. Rxe6 {[%clk 0:00:05.3]} 56... Bxe6 {[%clk
0:00:53.2]} 57. Kc3 {[%clk 0:00:04.2]} 57... a2 {[%clk 0:00:49.7]} 58. Kb2
{[%clk 0:00:04.1]} 58... Bd5 {[%clk 0:00:48.7]} 59. g4 {[%clk 0:00:03.6]} 59...
Kd7 {[%clk 0:00:49.6]} 60. Bc5 {[%clk 0:00:02.7]} 60... Ke6 {[%clk 0:00:50.1]}
61. g5 {[%clk 0:00:03.1]} 61... Be4 {[%clk 0:00:50.4]} 62. Kxa2 {[%clk
0:00:02.6]} 62... Kd7 {[%clk 0:00:51.1]} 63. Ka3 {[%clk 0:00:02.9]} 63... Bg6
{[%clk 0:00:51.9]} 64. Kb4 {[%clk 0:00:03.8]} 64... Ke6 {[%clk 0:00:52.8]} 65.
Kc3 {[%clk 0:00:04.4]} 65... Bf5 {[%clk 0:00:52.3]} 66. Kd4 {[%clk 0:00:04.5]}
66... Bg6 {[%clk 0:00:53.1]} 67. Kc4 {[%clk 0:00:03.9]} 67... Bf5 {[%clk
0:00:53.4]} 68. Kb4 {[%clk 0:00:04.6]} 68... Bg6 {[%clk 0:00:53.5]} 69. Ka5
{[%clk 0:00:05.2]} 69... Kd7 {[%clk 0:00:54.4]} 70. Kb6 {[%clk 0:00:05.7]} 70...
Bf5 {[%clk 0:00:55.1]} 71. Bb4 {[%clk 0:00:06.1]} 71... Bg6 {[%clk 0:00:56]} 72.
Kc5 {[%clk 0:00:06.7]} 72... Bf5 {[%clk 0:00:56.6]} 73. Kd4 {[%clk 0:00:07]}
73... Ke6 {[%clk 0:00:57.3]} 74. Ke3 {[%clk 0:00:07.2]} 74... Bg6 {[%clk
0:00:57.5]} 75. Kf4 {[%clk 0:00:07.8]} 75... Bh5 {[%clk 0:00:57.6]} 76. Bc5
{[%clk 0:00:06.9]} 76... Bg6 {[%clk 0:00:58.2]} 77. Kg4 {[%clk 0:00:07.3]} 77...
Ke5 {[%clk 0:00:58.6]} 78. Bb4 {[%clk 0:00:02.1]} 78... Ke6 {[%clk 0:00:58.8]}
79. Kf4 {[%clk 0:00:02.5]} 79... Bh5 {[%clk 0:00:59.1]} 80. Kg3 {[%clk
0:00:02.7]} 80... Bg6 {[%clk 0:00:59.6]} 81. Kg4 {[%clk 0:00:03.3]} 81... Kd7
{[%clk 0:00:58.8]} 82. Kf4 {[%clk 0:00:03]} 82... Ke6 {[%clk 0:00:59.7]} 83. Bc5
{[%clk 0:00:02.9]} 83... Bh5 {[%clk 0:00:59.7]} 84. Kg3 {[%clk 0:00:03.3]} 84...
Bg6 {[%clk 0:01:00]} 85. Kh4 {[%clk 0:00:04]} 85... Kd7 {[%clk 0:01:00.5]} 86.
Kg4 {[%clk 0:00:04.4]} 86... Ke6 {[%clk 0:01:01.4]} 87. Kf4 {[%clk 0:00:05.1]}
87... Bh5 {[%clk 0:01:01.9]} 88. Ke4 {[%clk 0:00:04.8]} 88... Bg6+ {[%clk
0:01:02]} 89. Kd4 {[%clk 0:00:05.5]} 89... Bh5 {[%clk 0:01:02.5]} 90. Bb4 {[%clk
0:00:06.1]} 90... Bg6 {[%clk 0:01:03]} 91. Kc5 {[%clk 0:00:06.8]} 91... Kd7
{[%clk 0:01:03.7]} 92. Bd2 {[%clk 0:00:07.7]} 92... Bh5 {[%clk 0:01:03.6]} 93.
Bf4 {[%clk 0:00:08.6]} 93... Bg6 {[%clk 0:01:04.1]} 94. Kd4 {[%clk 0:00:09]}
94... Ke6 {[%clk 0:01:04.3]} 95. Kc4 {[%clk 0:00:09]} 95... Bh5 {[%clk 0:01:04]}
96. Kd4 {[%clk 0:00:08.8]} 96... Bg6 {[%clk 0:01:03.9]} 97. Ke3 {[%clk
0:00:08.6]} 97... Bh5 {[%clk 0:01:04]} 98. Ke4 {[%clk 0:00:09]} 98... Bg6+
{[%clk 0:01:04.5]} 99. Kf3 {[%clk 0:00:09.7]} 99... Bh5+ {[%clk 0:01:04.8]} 100.
Kg3 {[%clk 0:00:10.3]} 100... Bg6 {[%clk 0:01:05.7]} 101. Kg4 {[%clk 0:00:10.5]}
101... Kd7 {[%clk 0:01:06.5]} 102. Be5 {[%clk 0:00:10.6]} 102... Ke6 {[%clk
0:01:07.4]} 103. Kf4 {[%clk 0:00:11.3]} 103... Bh5 {[%clk 0:01:07.4]} 104. Ke4
{[%clk 0:00:10.9]} 104... Bg6+ {[%clk 0:01:07.4]} 105. Kd4 {[%clk 0:00:11.8]}
105... Kd7 {[%clk 0:01:07.8]} 106. Bf4 {[%clk 0:00:12.7]} 106... Ke6 {[%clk
0:01:07.7]} 1/2-1/2

[Event "Late-Titled-Tuesday-Blitz-March-12-2024"]
[Site "Chess.com"]
[Date "2024.03.12"]
[Round "9"]
[White "HaryKane"]
[Black "lamomiajunior"]
[Result "1/2-1/2"]
[WhiteElo "2608"]
[BlackElo "2779"]
[TimeControl "180+1"]
[EndTime "15:44:24 PDT"]
[Termination "Game drawn by repetition"]

1. d4 {[%clk 0:02:59]} 1... g6 {[%clk 0:02:59.2]} 2. e3 {[%clk 0:02:58.6]} 2...
Bg7 {[%clk 0:02:59.7]} 3. f4 {[%clk 0:02:57.2]} 3... Nf6 {[%clk 0:02:59.8]} 4.
Nf3 {[%clk 0:02:56.6]} 4... d6 {[%clk 0:03:00.7]} 5. Bd3 {[%clk 0:02:56.2]} 5...
O-O {[%clk 0:03:01.6]} 6. e4 {[%clk 0:02:56.5]} 6... b6 {[%clk 0:03:02.5]} 7.
O-O {[%clk 0:02:56.3]} 7... Bb7 {[%clk 0:03:02.9]} 8. Qe2 {[%clk 0:02:56.5]}
8... c5 {[%clk 0:03:02.1]} 9. c3 {[%clk 0:02:55.8]} 9... cxd4 {[%clk 0:02:57.8]}
10. cxd4 {[%clk 0:02:56.7]} 10... Nc6 {[%clk 0:02:58.3]} 11. Nc3 {[%clk
0:02:52.8]} 11... Rc8 {[%clk 0:02:57.8]} 12. a3 {[%clk 0:02:51.4]} 12... Na5
{[%clk 0:02:57.6]} 13. Be3 {[%clk 0:02:46.9]} 13... d5 {[%clk 0:02:53.9]} 14. e5
{[%clk 0:02:44.8]} 14... Ne4 {[%clk 0:02:54.1]} 15. Bxe4 {[%clk 0:02:40.8]}
15... dxe4 {[%clk 0:02:54.3]} 16. Nd2 {[%clk 0:02:41.3]} 16... Nb3 {[%clk
0:02:54.2]} 17. Nxb3 {[%clk 0:02:40.1]} 17... Qd7 {[%clk 0:02:36.2]} 18. Rad1
{[%clk 0:02:36.5]} 18... e6 {[%clk 0:02:34.9]} 19. d5 {[%clk 0:02:30.1]} 19...
exd5 {[%clk 0:02:34.2]} 20. Nd4 {[%clk 0:02:29.8]} 20... Rc4 {[%clk 0:02:32.5]}
21. Nxe4 {[%clk 0:02:18.7]} 21... Ba6 {[%clk 0:02:24.4]} 22. Nf6+ {[%clk
0:01:54.5]} 22... Bxf6 {[%clk 0:02:23.1]} 23. exf6 {[%clk 0:01:55.4]} 23... Re8
{[%clk 0:02:22.1]} 24. Qf2 {[%clk 0:01:52.2]} 24... Qg4 {[%clk 0:02:16.8]} 25.
h3 {[%clk 0:01:43.3]} 25... Qh5 {[%clk 0:02:13.8]} 26. Rfe1 {[%clk 0:01:37.8]}
26... Re4 {[%clk 0:02:06.4]} 27. f5 {[%clk 0:01:28]} 27... Bc8 {[%clk
0:01:52.6]} 28. fxg6 {[%clk 0:01:25.6]} 28... hxg6 {[%clk 0:01:53.5]} 29. Rc1
{[%clk 0:01:17.3]} 29... b5 {[%clk 0:01:33.4]} 30. b3 {[%clk 0:01:04.1]} 30...
Rxc1 {[%clk 0:01:30.8]} 31. Rxc1 {[%clk 0:01:05]} 31... Bxh3 {[%clk 0:01:30.9]}
32. gxh3 {[%clk 0:00:57.4]} 32... Qxh3 {[%clk 0:01:31.8]} 33. Bf4 {[%clk
0:00:47.6]} 33... g5 {[%clk 0:01:28.1]} 34. Qf3 {[%clk 0:00:29.3]} 34... Qxf3
{[%clk 0:01:23.9]} 35. Nxf3 {[%clk 0:00:29.4]} 35... Rxf4 {[%clk 0:01:24.8]} 36.
Rc8+ {[%clk 0:00:23.9]} 36... Kh7 {[%clk 0:01:23.6]} 37. Nxg5+ {[%clk
0:00:23.8]} 37... Kg6 {[%clk 0:01:24]} 38. Nh3 {[%clk 0:00:20.1]} 38... Rf3
{[%clk 0:01:21.1]} 39. Kg2 {[%clk 0:00:20.1]} 39... Rxb3 {[%clk 0:01:21]} 40.
Rc6 {[%clk 0:00:19.9]} 40... Rxa3 {[%clk 0:01:18.9]} 41. Nf4+ {[%clk 0:00:20]}
41... Kf5 {[%clk 0:01:16.1]} 42. Nxd5 {[%clk 0:00:20.9]} 42... a5 {[%clk
0:01:12.4]} 43. Kf2 {[%clk 0:00:20.7]} 43... b4 {[%clk 0:01:12.5]} 44. Ne3+
{[%clk 0:00:20.5]} 44... Ke4 {[%clk 0:01:10]} 45. Nc4 {[%clk 0:00:20.1]} 45...
Ra2+ {[%clk 0:01:10.5]} 46. Ke1 {[%clk 0:00:18.8]} 46... b3 {[%clk 0:01:10.5]}
47. Kd1 {[%clk 0:00:18.4]} 47... a4 {[%clk 0:01:10.3]} 48. Rc7 {[%clk
0:00:14.8]} 48... a3 {[%clk 0:01:03.5]} 49. Nd2+ {[%clk 0:00:13.5]} 49... Kd3
{[%clk 0:01:00.2]} 50. Nxb3 {[%clk 0:00:13.2]} 50... Rb2 {[%clk 0:00:56.8]} 51.
Nc1+ {[%clk 0:00:12.9]} 51... Ke3 {[%clk 0:00:55.8]} 52. Rxf7 {[%clk 0:00:13.4]}
52... Rd2+ {[%clk 0:00:51.6]} 53. Ke1 {[%clk 0:00:13.6]} 53... Rc2 {[%clk
0:00:52]} 54. Re7+ {[%clk 0:00:13.1]} 54... Kf3 {[%clk 0:00:52.4]} 55. Ne2
{[%clk 0:00:09.9]} 55... Rc8 {[%clk 0:00:38.9]} 56. f7 {[%clk 0:00:06.9]} 56...
a2 {[%clk 0:00:34.9]} 57. Ra7 {[%clk 0:00:06.7]} 57... Rf8 {[%clk 0:00:31.9]}
58. Rxa2 {[%clk 0:00:01.5]} 58... Rxf7 {[%clk 0:00:32.3]} 59. Ra3+ {[%clk
0:00:01.7]} 59... Ke4 {[%clk 0:00:31.9]} 60. Ra4+ {[%clk 0:00:02.6]} 60... Kd3
{[%clk 0:00:30]} 61. Ra3+ {[%clk 0:00:02.9]} 61... Kc4 {[%clk 0:00:30.1]} 62.
Rg3 {[%clk 0:00:02.7]} 62... Rd7 {[%clk 0:00:27.7]} 63. Rc3+ {[%clk 0:00:03]}
63... Kb4 {[%clk 0:00:27.6]} 64. Rc1 {[%clk 0:00:03.9]} 64... Re7 {[%clk
0:00:27.7]} 65. Kd2 {[%clk 0:00:03.8]} 65... Rd7+ {[%clk 0:00:28.3]} 66. Ke3
{[%clk 0:00:04.5]} 66... Re7+ {[%clk 0:00:28.7]} 67. Kd3 {[%clk 0:00:05.1]}
67... Rd7+ {[%clk 0:00:29.2]} 68. Nd4 {[%clk 0:00:05.7]} 68... Ka5 {[%clk
0:00:26.9]} 69. Rb1 {[%clk 0:00:06.1]} 69... Rc7 {[%clk 0:00:25.2]} 70. Ke4
{[%clk 0:00:06.3]} 70... Ka4 {[%clk 0:00:22.7]} 71. Kd5 {[%clk 0:00:06.1]} 71...
Rd7+ {[%clk 0:00:21.6]} 72. Kc5 {[%clk 0:00:06]} 72... Rc7+ {[%clk 0:00:21.2]}
73. Nc6 {[%clk 0:00:06.4]} 73... Ka3 {[%clk 0:00:21.3]} 74. Rb6 {[%clk
0:00:05.8]} 74... Rh7 {[%clk 0:00:19.7]} 75. Kc4 {[%clk 0:00:05.5]} 75... Rh4+
{[%clk 0:00:13.1]} 76. Nd4 {[%clk 0:00:05.8]} 76... Ka2 {[%clk 0:00:13.7]} 77.
Kc3 {[%clk 0:00:05.7]} 77... Rh3+ {[%clk 0:00:13.5]} 78. Kc4 {[%clk 0:00:06.1]}
78... Rh4 {[%clk 0:00:13.8]} 79. Rb5 {[%clk 0:00:05.5]} 79... Rg4 {[%clk
0:00:13.2]} 80. Kd3 {[%clk 0:00:05.5]} 80... Rg3+ {[%clk 0:00:12]} 81. Kd2
{[%clk 0:00:05.1]} 81... Rg2+ {[%clk 0:00:12.1]} 82. Ne2 {[%clk 0:00:05.6]}
82... Ka3 {[%clk 0:00:12.3]} 83. Kd3 {[%clk 0:00:05.6]} 83... Rh2 {[%clk
0:00:10.1]} 84. Rb8 {[%clk 0:00:05.3]} 84... Rh3+ {[%clk 0:00:09.8]} 85. Kc4
{[%clk 0:00:05.1]} 85... Rh4+ {[%clk 0:00:09.7]} 86. Nd4 {[%clk 0:00:05.6]}
86... Ka2 {[%clk 0:00:10.3]} 87. Kc3 {[%clk 0:00:05]} 87... Rh3+ {[%clk
0:00:09.8]} 88. Kc4 {[%clk 0:00:05.6]} 88... Rh4 {[%clk 0:00:10.4]} 89. Ra8+
{[%clk 0:00:06.2]} 89... Kb2 {[%clk 0:00:10.5]} 90. Rb8+ {[%clk 0:00:06]} 90...
Ka2 {[%clk 0:00:10.7]} 1/2-1/2